Cogmind - Beta 15 @@@ ROGUE MODE // 2025.09.11 @ 23:13:42 Player: Petvaria Result: Destroyed by S-43 Plague with Heavy Machine Gun Performance ------------- Evolutions (9) 4500 Regions Visited (23) 4600 Robots Destroyed (61) 305 Value Destroyed (1922) 1922 Prototype IDs (42) 840 Alien Tech Used (0) 0 Bonus (7073) 7073 TOTAL SCORE: 19240 Bonus ------- High Alert Combat Kills 95 Follower Combat Kills 2403 Registered with UFD 300 Met Imprinter 300 Met Warlord at Base 500 MAIN.C Attacked Warlord 500 Built Enhanced Grunts 300 A7 Reached Mainframe 300 Met R17 at Cetus 500 Met R17 at Research 2000 Friendly Fire -125 Cogmind --------- Core Integrity 0/1600 Matter 90/300 Energy 67/100 System Corruption 10% Temperature Cool (0) Movement Core (50) Location -1/Access Parts ------- > --- POWER (2) -------- (None) > --- PROPULSION (9) --- (None) > --- UTILITY (12) ----- (None) > --- WEAPON (2) ------- (None) > --- INVENTORY (5) ---- Light Quantum Reactor Heavy Beamcaster Neutron Cannon Enhanced Hardcell Cannon Makeshift Axe Peak State ------------ > --- POWER ------------ Light Antimatter Reactor Light Particle Reactor > --- PROPULSION ------- Improved Heavy Treads Biometal Medium Treads Advanced Heavy Treads Centrium Heavy Treads Centrium Heavy Treads > --- UTILITY ---------- Advanced Heat Sink Medium Storage Unit Advanced Signal Interpreter Improved Armor Integrity Analyzer Layered Medium Armor Plating Layered Medium Armor Plating Layered Medium Armor Plating Centrium Medium Armor Plating Enhanced Scrap Shield > --- WEAPON ----------- Neutron Cannon Advanced KE Penetrator > --- INVENTORY -------- Quantum Reactor Improved Heavy Treads Triangulator Heavy Beamcaster Hardcell Cannon Hardcell Cannon Linear Accelerator Makeshift Axe [Rating: 164] Favorites ----------- Power Ion Engine Engine Ion Engine Power Core Fission Core Reactor Light Antimatter Reactor Propulsion Aluminum Leg Treads Centrium Heavy Treads Leg Aluminum Leg Wheel Subdweller Monowheel Flight Unit Improved Cesium-ion Thruster Utility Large Storage Unit Device Advanced Heat Sink Storage Large Storage Unit Processor Advanced Signal Interpreter Hackware Hacking Suite Protection Makeshift Light Armor Plating Weapon Battle Rifle Energy Gun Wave Gun Energy Cannon Neutron Cannon Ballistic Gun Battle Rifle Ballistic Cannon Hardcell Cannon Launcher Mini Grenade Launcher Slashing Weapon Makeshift Axe Piercing Weapon Spear Special Melee Weapon Dirty Datajack Build | -11 -10 -10 -8 -8 -6 -6 -6 -6 -6 -6 -5 -5 -5 -5 -5 -4 -4 -4 -4 -4 -3 -2 -1 ------- Run | Yrd Mat Sub Rec Scr Fac Was Fac Low Low Zio Pro Fac Upp Upp War Pro Fac Ext Cet Arc Res Res Acc Slots Evolved 18 | . . . . . 8 . . . . . . 2 . . . . 2 . . . 2 2 2 Power 1 | . . . . . . . . . . . . . . . . . . . . . 1 . . Propulsion 7 | . . . . . 3 . . . . . . . . . . . 1 . . . 1 2 . Utility 10 | . . . . . 5 . . . . . . 2 . . . . 1 . . . . . 2 Weapon . | . . . . . . . . . . . . . . . . . . . . . . . . Parts Attached 130 | 6 3 20 . 2 13 1 2 1 . 13 . 7 2 1 5 . 1 16 12 3 13 3 6 Power 14 | 1 . 4 . 1 1 . 1 . . 1 . 1 . 1 . . . . 1 . 2 . . Engine 7 | 1 . 4 . . 1 . . . . 1 . . . . . . . . . . . . . Core 4 | . . . . 1 . . 1 . . . . 1 . 1 . . . . . . . . . Reactor 3 | . . . . . . . . . . . . . . . . . . . 1 . 2 . . Propulsion 41 | 2 . 6 . . 6 . . . . 1 . 1 . . 2 . 1 10 3 1 3 2 3 Treads 21 | 2 . 1 . . . . . . . . . . . . . . . 9 3 1 3 2 . Leg 4 | . . 3 . . . . . . . . . . . . . . . . . . . . 1 Wheel 3 | . . 2 . . . . . . . . . . . . . . . 1 . . . . . Hover . | . . . . . . . . . . . . . . . . . . . . . . . . Flight 13 | . . . . . 6 . . . . 1 . 1 . . 2 . 1 . . . . . 2 Utility 46 | 1 3 2 . 1 3 1 1 1 . 6 . 3 2 . 3 . . 3 5 2 6 . 3 Device 12 | . . 1 . . 2 . . . . 1 . 1 1 . . . . . 2 1 1 . 2 Storage 7 | 1 2 . . . . . . . . . . . . . 1 . . 1 . . 1 . 1 Processor 6 | . . . . . 1 . . . . 4 . . . . . . . . 1 . . . . Hackware 6 | . . . . . . 1 . . . . . 2 1 . 2 . . . . . . . . Protection 15 | . 1 1 . 1 . . 1 1 . 1 . . . . . . . 2 2 1 4 . . Artifact . | . . . . . . . . . . . . . . . . . . . . . . . . Weapon 29 | 2 . 8 . . 3 . . . . 5 . 2 . . . . . 3 3 . 2 1 . Energy Gun 3 | . . 1 . . . . . . . . . . . . . . . 1 1 . . . . Energy Cannon 2 | . . . . . . . . . . . . . . . . . . . 1 . 1 . . Ballistic Gun 11 | 2 . 6 . . . . . . . . . 1 . . . . . 1 1 . . . . Ballistic Cannon 5 | . . 1 . . 1 . . . . . . . . . . . . 1 . . 1 1 . Launcher 4 | . . . . . . . . . . 4 . . . . . . . . . . . . . Special Weapon . | . . . . . . . . . . . . . . . . . . . . . . . . Impact Weapon . | . . . . . . . . . . . . . . . . . . . . . . . . Slashing Weapon 1 | . . . . . . . . . . 1 . . . . . . . . . . . . . Piercing Weapon 1 | . . . . . 1 . . . . . . . . . . . . . . . . . . Special Melee Weapon 2 | . . . . . 1 . . . . . . 1 . . . . . . . . . . . Unidentified Prototypes 20 | . . . . . 2 1 . 1 . 3 . 1 . . . . 1 1 6 . 3 . 1 Corrupted Parts 3 | . . . . . . . . . . . . . . . . . . . 2 1 . . . System Corruption 10 | . . . . . . . . . . . . . . . . . . . 9 1 . . . Parts Lost 49 | . . 9 . . 5 . . . . 6 1 1 . 2 1 . 1 4 . . . 14 5 Power 7 | . . 2 . . 1 . . . . 1 . . . . . . . 1 . . . 2 . Propulsion 18 | . . 4 . . 3 . . . . 3 . . . . . . . 2 . . . 4 2 Utility 18 | . . . . . 1 . . . . 1 1 1 . 2 1 . 1 . . . . 7 3 Weapon 6 | . . 3 . . . . . . . 1 . . . . . . . 1 . . . 1 . Highest Loss Streak 14 | . . 2 . . 3 . . . . 4 1 1 . 2 1 . 1 2 . . . 14 3 To Critical Strikes . | . . . . . . . . . . . . . . . . . . . . . . . . Average Backups 10 | 2 8 12 13 13 10 10 10 9 8 8 3 3 4 4 3 2 3 6 9 8 7 6 4 Power . | . 1 1 1 1 . 1 1 1 1 . . . 1 1 1 1 1 . 1 1 1 1 1 Propulsion 1 | 1 3 1 . . . . . . . . . . . . . . . 1 2 2 1 . . Utility 2 | . . 2 3 2 2 2 4 4 5 4 1 1 2 2 1 1 1 1 2 1 1 1 . Weapon 5 | . 3 7 8 7 5 5 2 1 . 1 1 . 1 1 . . . 2 4 4 4 4 3 Tool/Special . | . . . . . . . . . . . . . . . . . . . . . . . . Unused Backups 21 | . . 5 . 2 1 . 3 . . 2 . . . . . . . . 3 . . 1 4 Power 2 | . . . . . . . . . . . . . . . . . . . . . . . 2 Propulsion 2 | . . . . . . . . . . . . . . . . . . . 2 . . . . Utility 4 | . . 1 . . . . . . . 2 . . . . . . . . 1 . . . . Weapon 12 | . . 3 . 2 1 . 3 . . . . . . . . . . . . . . 1 2 Tool/Special 1 | . . 1 . . . . . . . . . . . . . . . . . . . . . Average Slot Usage (%) 81 | . 96 94 100 85 52 51 55 53 53 76 45 52 63 55 70 88 67 75 74 75 70 61 8 Engine 8 | . 14 13 14 12 . . . . . 5 . . . . 4 5 5 1 . . . . . Treads 6 | . 28 5 . . . . . . . . . . . . . . . 16 16 15 17 16 . Leg 9 | . . 17 14 14 . . . . . . . . . . . . . . . . . . . Flight 2 | . . . . . 25 20 20 20 20 22 6 6 11 11 13 23 15 2 . . . . . Device 1 | . . . . . 5 6 6 6 6 11 12 10 11 3 . . . . 1 7 4 3 3 Storage 10 | . 14 13 14 14 6 6 6 6 6 5 . . . . . 5 . 3 5 5 4 3 . Processor 4 | . . . . . 2 6 6 6 6 24 20 17 17 17 17 17 15 13 10 12 9 6 3 Hackware 2 | . . . . . . 4 6 6 6 . . 6 10 11 20 17 15 11 8 . . . . Protection 12 | . 10 13 14 14 . . 2 . . . 6 5 5 5 5 5 3 8 14 18 19 15 . Ballistic Gun 17 | . 28 27 28 28 1 . . . . . . . . . . . . 2 4 5 4 2 . Peak Build Rating 164 | 6 8 17 17 18 34 33 39 47 36 59 37 57 57 54 57 57 63 85 140 140 150 164 41 Average Rating 39 | 4 7 13 17 15 26 32 33 33 33 52 36 44 53 44 52 57 54 71 119 134 137 129 15 On Entrance 46 | . 6 8 17 17 18 25 33 32 33 33 37 34 50 54 42 57 57 52 84 140 131 150 8 Naked Turns 15 | . . . . . . . . . . . . . . . . . . . . . . . 15 Heaviest Build 97 | 11 27 35 34 34 18 13 16 16 18 23 4 8 5 5 18 18 18 71 78 82 97 97 10 Greatest Support 340 | 40 40 40 20 20 22 16 16 16 16 21 6 6 6 12 20 20 20 162 240 240 275 340 32 Greatest Overweight (x) 18 | . . 3 1 3 1 . . . 1 1 . 1 . . . . . 7 . . . 18 3 Average Overweight (x) . | . . 1 1 2 . . . . . . . . . . . . . . . . . . . Largest Inventory Capacity 15 | 8 15 15 15 15 15 10 10 10 10 10 5 5 5 5 10 10 10 10 10 10 10 10 10 Average Capacity 12 | 6 10 14 15 15 10 10 10 10 10 9 5 5 5 5 5 10 5 8 10 10 10 9 5 Most Carried 15 | 4 11 15 14 15 14 10 10 10 10 10 5 5 5 5 5 3 5 10 10 10 10 9 5 Average Carried 11 | 2 8 13 14 14 9 10 9 9 9 9 4 4 5 5 4 3 4 6 9 9 9 7 4 Final Capacity 15 | 8 15 15 15 15 10 10 10 10 10 5 5 5 5 5 10 10 5 10 10 10 10 5 5 Final Carried 15 | 4 11 14 14 15 10 10 10 10 10 4 5 5 5 5 3 3 5 10 10 8 10 5 5 Class Distribution -------------------- 63% | Mutant 16% | Scavenger-Mutant 3% | Hacker-Mutant 3% | Sprinter 3% | Hacker-Sprinter 3% | Derelict-Sprinter 3% | Commander-Mutant Dominant Class ---------------- Mutant | -10/Materials Mutant | -10/Subcaves Mutant | -8/Recycling Mutant | -8/Scraptown Sprinter | -6/Factory Sprinter | -6/Waste Sprinter | -6/Factory Sprinter | -6/Lower Caves Sprinter | -6/Lower Caves Derelict-Sprinter | -6/Zion Mutant | -5/Proximity Caves Mutant | -5/Factory Hacker-Mutant | -5/Upper Caves Hacker-Mutant | -5/Upper Caves Hacker-Mutant | -5/Warlord Hacker-Sprinter | -4/Proximity Caves Hacker-Sprinter | -4/Factory Scavenger-Mutant | -4/Extension Scavenger-Mutant | -4/Cetus Scavenger-Mutant | -4/Archives Scavenger-Mutant | -3/Research Scavenger-Mutant | -2/Research Mutant | -1/Access Resources | -11 -10 -10 -8 -8 -6 -6 -6 -6 -6 -6 -5 -5 -5 -5 -5 -4 -4 -4 -4 -4 -3 -2 -1 ----------- Run | Yrd Mat Sub Rec Scr Fac Was Fac Low Low Zio Pro Fac Upp Upp War Pro Fac Ext Cet Arc Res Res Acc Matter Collected 2881 | 185 195 614 . 20 . . . 174 11 214 253 . 86 44 58 . . 460 226 60 278 3 . Remotely . | . . . . . . . . . . . . . . . . . . . . . . . . Salvage Created 2081 | . 219 590 . . . . . . 109 160 . . . . . . . 376 206 . 340 81 . Parts 145 | . 16 41 . . . . . . 3 25 . . . . . . . 19 8 . 25 8 . Haulers Intercepted 2 | . 2 . . . . . . . . . . . . . . . . . . . . . . Recyclers Shooed . | . . . . . . . . . . . . . . . . . . . . . . . . Parts Field Recycled . | . . . . . . . . . . . . . . . . . . . . . . . . Retrieved Matter . | . . . . . . . . . . . . . . . . . . . . . . . . Parts Self-Destructed 15 | . . 8 . . . . . 4 . . . . 3 . . . . . . . . . . Prevented . | . . . . . . . . . . . . . . . . . . . . . . . . Kills | -11 -10 -10 -8 -8 -6 -6 -6 -6 -6 -6 -5 -5 -5 -5 -5 -4 -4 -4 -4 -4 -3 -2 -1 ------- Run | Yrd Mat Sub Rec Scr Fac Was Fac Low Low Zio Pro Fac Upp Upp War Pro Fac Ext Cet Arc Res Res Acc Combat Hostiles Destroyed 35 | . 5 13 . . . . . . . 1 . . . . . . . 5 3 . 7 1 . Guns 29 | . 5 13 . . . . . . . . . . . . . . . 4 3 . 4 . . Cannons 4 | . . . . . . . . . . . . . . . . . . 1 . . 2 1 . AOE 2 | . . . . . . . . . . 1 . . . . . . . . . . 1 . . Classes Destroyed 14 | . 4 3 . . . . . . . 1 . . . . . . . 2 . . 1 3 . Worker 1 | . . . . . . . . . . . . . . . . . . . . . . 1 . Builder 1 | . . . . . . . . . . . . . . . . . . . . . . 1 . Hauler 2 | . 2 . . . . . . . . . . . . . . . . . . . . . . Watcher 1 | . 1 . . . . . . . . . . . . . . . . . . . . . . Swarmer 12 | . 4 3 . . . . . . . . . . . . . . . 2 . . 3 . . Grunt 6 | . 1 . . . . . . . . . . . . . . . . 2 . . 3 . . Sentry 1 | . . 1 . . . . . . . . . . . . . . . . . . . . . Hunter 1 | . . . . . . . . . . . . . . . . . . . . . 1 . . Programmer 1 | . . . . . . . . . . . . . . . . . . . . . . 1 . Behemoth 1 | . . . . . . . . . . . . . . . . . . 1 . . . . . Cetus Guard 3 | . . . . . . . . . . . . . . . . . . . 3 . . . . Cobbler 1 | . . 1 . . . . . . . . . . . . . . . . . . . . . Subdweller 9 | . . 9 . . . . . . . . . . . . . . . . . . . . . Zionite 20 | . . . . . . . . . . 20 . . . . . . . . . . . . . Butcher 1 | . . . . . . . . . . . . . . . . . . 1 . . . . . Best Kill Streak 20 | . 3 3 . . . . . . . 20 . . . . . . . 2 2 . 3 2 . Combat Bots Only 3 | . 3 3 . . . . . . . 1 . . . . . . . 2 2 . 3 1 . Max Kills in Single Turn 1 | . 1 1 . . . . . . . 1 . . . . . . . 1 1 . 1 1 . Gunslinging . | . . . . . . . . . . . . . . . . . . . . . . . . Exploded 1 | . . . . . . . . . . 1 . . . . . . . . . . 1 . . Melee . | . . . . . . . . . . . . . . . . . . . . . . . . Uniques/NPCs Destroyed 1 | . . . . . . . . . . 1 . . . . . . . . . . . . . Imprinter (-6/Zion) Combat | -11 -10 -10 -8 -8 -6 -6 -6 -6 -6 -6 -5 -5 -5 -5 -5 -4 -4 -4 -4 -4 -3 -2 -1 -------- Run | Yrd Mat Sub Rec Scr Fac Was Fac Low Low Zio Pro Fac Upp Upp War Pro Fac Ext Cet Arc Res Res Acc Hostile Shots Fired 1002 | . 25 150 . . 58 . . . . 106 18 10 1 28 12 . 24 90 51 6 106 151 166 Missed 395 | . 8 44 . . 33 . . . . 66 7 7 1 18 7 . 18 28 22 3 36 18 79 Hits 607 | . 17 106 . . 25 . . . . 40 11 3 . 10 5 . 6 62 29 3 70 133 87 Projectile 607 | . 17 106 . . 25 . . . . 40 11 3 . 10 5 . 6 62 29 3 70 133 87 AOE 5 | . . . . . . . . . . 1 . . . . . . . 4 . . . . . Critical Strikes 34 | . . 2 . . . . . . . 1 1 . . . . . 1 2 6 . 5 13 3 Damage Taken 13422 | . 134 1683 . . 288 . . . . 634 139 63 . 168 97 . 127 1411 808 93 1391 4276 2110 Core 3733 | . 34 178 . . 69 . . . . 215 76 . . 65 36 . 70 79 39 . 31 1226 1615 Absorbed by Shields 495 | . . . . . . . . . . . . . . . . . . 331 164 . . . . Reduced by Siege Mode 225 | . . . . . . . . . . . . . . . . . . . . . . 225 . Redirected to Shielding 111 | . . 7 . . . . . . . 27 . . . 27 26 . 24 . . . . . . Ignored by Resistances 18 | . . . . . . . . . . . . . . . . . . . . 18 . . . Regen/Repaired (Parts) 149 | . . . . . . . . . . 122 . . . . 27 . . . . . . . . Core Remaining (%) 65 | 100 . . . 15 . . . . . . 57 . . . . 89 . . . 83 97 15 . Volleys Fired 247 | . 25 71 . . . . . . . 33 . . . . . . . 54 15 6 28 15 . Largest 2 | . 2 2 . . . . . . . 1 . . . . . . . 2 2 2 2 2 . Hottest 145 | . 40 85 . . . . . . . 39 . . . . . . . 136 116 125 125 145 . Shots Fired 435 | . 50 137 . . . . . . . 33 . . . . . . . 97 28 10 53 27 . Gun 335 | . 50 133 . . . . . . . . . . . . . . . 83 28 6 27 8 . Cannon 67 | . . 4 . . . . . . . . . . . . . . . 14 . 4 26 19 . Launcher 33 | . . . . . . . . . . 33 . . . . . . . . . . . . . Special . | . . . . . . . . . . . . . . . . . . . . . . . . Kinetic 284 | . 50 126 . . . . . . . . . . . . . . . 47 14 6 27 14 . Thermal 118 | . . 11 . . . . . . . . . . . . . . . 50 14 4 26 13 . Explosive 33 | . . . . . . . . . . 33 . . . . . . . . . . . . . Electromagnetic . | . . . . . . . . . . . . . . . . . . . . . . . . Robot Hit Streak 28 | . 9 28 . . . . . . . 4 . . . . . . . 9 6 6 10 16 . Robot Miss Streak 6 | . 6 6 . . . . . . . 3 . . . . . . . 4 3 2 5 4 . Penetration Max 1 | . . . . . . . . . . . . . . . . . . 1 1 . 1 . . Secondary Targets 4 | . 1 1 . . . . . . . . . . . . . . . 2 . . . . . Max Gunslinging Chain 1 | . 1 1 . . . . . . . . . . . . . . . 1 . . . . . Shots Hit Robots 294 | . 30 103 . . . . . . 2 14 . 1 . . . . . 66 19 7 32 20 . Core Hits 135 | . 13 37 . . . . . . 1 28 . . . . . . . 26 7 2 15 5 1 Critical Kills 4 | . . 1 . . . . . . . . . . . . . . . . 2 . 1 . . Critical Parts Destroyed 5 | . 2 . . . . . . . . . . . . . . . . 2 . . 1 . . Critical Strikes 16 | . 2 1 . . . . . . . . . . . . . . . 8 2 . 2 1 . Burn 4 | . . . . . . . . . . . . . . . . . . 4 . . . . . Destroy 11 | . 2 1 . . . . . . . . . . . . . . . 3 2 . 2 1 . Blast 1 | . . . . . . . . . . . . . . . . . . 1 . . . . . Melee Attacks 22 | . . . . . 1 . . . 2 2 . 6 . . . . 4 7 . . . . . Impact . | . . . . . . . . . . . . . . . . . . . . . . . . Slashing 19 | . . . . . . . . . . 2 . 6 . . . . 4 7 . . . . . Piercing 3 | . . . . . 1 . . . 2 . . . . . . . . . . . . . . Sneak Attacks 2 | . . . . . . . . . . . . 1 . . . . . 1 . . . . . Combat Hostiles 1 | . . . . . . . . . . . . . . . . . . 1 . . . . . Follow-up Attacks . | . . . . . . . . . . . . . . . . . . . . . . . . Damage Inflicted 8447 | . 329 1458 . . . . . . 134 1518 . 64 . . . . . 2089 557 224 1245 824 5 Guns 4675 | . 329 1458 . . . . . . . . . . . . . . . 1508 557 113 517 193 . Cannons 1661 | . . . . . . . . . . . . . . . . . . 388 . 111 585 577 . Explosions 1708 | . . . . . . . . . . 1518 . . . . . . . . . . 143 47 . Melee 391 | . . . . . . . . . 134 . . 64 . . . . . 193 . . . . . Ramming 12 | . . . . . . . . . . . . . . . . . . . . . . 7 5 Kinetic 3986 | . 329 1273 . . . . . . . . . . . . . . . 1104 319 113 517 331 . Thermal 2540 | . . 185 . . . . . . . . . . . . . . . 792 238 111 728 486 . Explosive 1518 | . . . . . . . . . . 1518 . . . . . . . . . . . . . Electromagnetic . | . . . . . . . . . . . . . . . . . . . . . . . . Impact . | . . . . . . . . . . . . . . . . . . . . . . . . Slashing 257 | . . . . . . . . . . . . 64 . . . . . 193 . . . . . Piercing 134 | . . . . . . . . . 134 . . . . . . . . . . . . . . Highest Corruption 13 | . . . . . . . . . . . . . . . . . . . 9 10 . 13 10 Average Corruption 7 | . . . . . . . . . . . . . . . . . . . 8 9 . 9 4 Corruption Purged . | . . . . . . . . . . . . . . . . . . . . . . . . Corruption Blocked . | . . . . . . . . . . . . . . . . . . . . . . . . Effects 40 | . . . . . . . . . . . . . . . . . . . 25 7 . 4 4 Message Errors 11 | . . . . . . . . . . . . . . . . . . . 8 1 . 2 . Matter Fused 9 | . . . . . . . . . . . . . . . . . . . 7 1 . . 1 Heat Flow Errors 4 | . . . . . . . . . . . . . . . . . . . 2 1 . 1 . Energy Discharges 4 | . . . . . . . . . . . . . . . . . . . 2 1 . . 1 Data Loss (minor) 8 | . . . . . . . . . . . . . . . . . . . 3 3 . . 2 Data Loss (major) 3 | . . . . . . . . . . . . . . . . . . . 3 . . . . Misdirections 1 | . . . . . . . . . . . . . . . . . . . . . . 1 . Overload Shots . | . . . . . . . . . . . . . . . . . . . . . . . . Overflow Damage 56 | . . . . . . . . . 56 . . . . . . . . . . . . . . Projectiles . | . . . . . . . . . . . . . . . . . . . . . . . . Explosions . | . . . . . . . . . . . . . . . . . . . . . . . . Melee 56 | . . . . . . . . . 56 . . . . . . . . . . . . . . Knockbacks 2 | . . . . . . . . . . . . . . . . . . 2 . . . . . Impact . | . . . . . . . . . . . . . . . . . . . . . . . . Kinetic 2 | . . . . . . . . . . . . . . . . . . 2 . . . . . Secondary . | . . . . . . . . . . . . . . . . . . . . . . . . Self-Inflicted Damage 25 | . . . . . . . . . . 4 . . . . . . . . . . . 19 2 Shots 2 | . . . . . . . . . . 1 . . . . . . . . . . . 1 . Rammed 4 | . . . . . . . . . . . . . . . . . . . . . . 2 2 Targets Rammed 4 | . . . . . . . . . . . . . . . . . . . . . . 2 2 Kicked . | . . . . . . . . . . . . . . . . . . . . . . . . Crushed . | . . . . . . . . . . . . . . . . . . . . . . . . Highest Temperature 1127 | . 6 . . . 1 . . . . 196 . 242 . . . . . 498 376 212 33 1127 . Average Temperature 216 | . 6 . . . 1 . . . . 56 . 131 . . . . . 128 175 87 15 590 . Received Heat Transfer 2605 | . 6 339 . . 24 . . . . 54 36 18 . . 18 . 9 188 67 18 209 1556 63 Effects 78 | . . . . . . . . . . . . . . . . . . 9 7 . . 62 . Shutdowns 15 | . . . . . . . . . . . . . . . . . . 1 . . . 14 . Energy Bleed 3 | . . . . . . . . . . . . . . . . . . 1 1 . . 1 . Interference 18 | . . . . . . . . . . . . . . . . . . 6 6 . . 6 . Matter Decay 5 | . . . . . . . . . . . . . . . . . . . . . . 5 . Short Circuit 4 | . . . . . . . . . . . . . . . . . . . . . . 4 . Damage (minor) 7 | . . . . . . . . . . . . . . . . . . . . . . 7 . Damage (major) 23 | . . . . . . . . . . . . . . . . . . 1 . . . 22 . Damage (core) 3 | . . . . . . . . . . . . . . . . . . . . . . 3 . Siege Activations 2 | . . . . . . . . . . . . . . . . . . . . . 1 1 . Total Turns 37 | . . . . . . . . . . . . . . . . . . . . . 8 29 . Longest Duration 29 | . . . . . . . . . . . . . . . . . . . . . 8 29 . Martial Activations . | . . . . . . . . . . . . . . . . . . . . . . . . Shielding Activations . | . . . . . . . . . . . . . . . . . . . . . . . . Robots Disrupted . | . . . . . . . . . . . . . . . . . . . . . . . . Combat Hostiles . | . . . . . . . . . . . . . . . . . . . . . . . . Robots Corrupted . | . . . . . . . . . . . . . . . . . . . . . . . . Combat Hostiles . | . . . . . . . . . . . . . . . . . . . . . . . . Parts Fried 1 | . . . . . . . . . . . . . . . . . . . 1 . . . . Impact Corruptions . | . . . . . . . . . . . . . . . . . . . . . . . . Robots Melted . | . . . . . . . . . . . . . . . . . . . . . . . . Combat Hostiles . | . . . . . . . . . . . . . . . . . . . . . . . . Parts Melted . | . . . . . . . . . . . . . . . . . . . . . . . . Heat Transferred 2207 | . . 235 . . . . . . . . . . . . . . . 1452 370 . 100 50 . Parts Sabotaged . | . . . . . . . . . . . . . . . . . . . . . . . . Parts Stolen . | . . . . . . . . . . . . . . . . . . . . . . . . Parts Stripped . | . . . . . . . . . . . . . . . . . . . . . . . . Power Chain Reactions 2 | . . . . . . . . . . . . . . . . . . . . . 1 1 . Alert | -11 -10 -10 -8 -8 -6 -6 -6 -6 -6 -6 -5 -5 -5 -5 -5 -4 -4 -4 -4 -4 -3 -2 -1 ------- Run | Yrd Mat Sub Rec Scr Fac Was Fac Low Low Zio Pro Fac Upp Upp War Pro Fac Ext Cet Arc Res Res Acc Maximum Alert Level 3 | . . . . . . . . . . . . . . . . . . 3 2 1 1 . . Low Security (%) 70 | 100 100 . 100 . 100 100 100 . . . . 100 . . . . 100 48 . 24 94 100 100 Level 1 15 | . . . . . . . . . . . . . . . . . . 14 67 75 5 . . Level 2 11 | . . . . . . . . . . . . . . . . . . 28 32 . . . . Level 3 2 | . . . . . . . . . . . . . . . . . . 8 . . . . . Level 4 . | . . . . . . . . . . . . . . . . . . . . . . . . Level 5 . | . . . . . . . . . . . . . . . . . . . . . . . . High Security . | . . . . . . . . . . . . . . . . . . . . . . . . Max Security . | . . . . . . . . . . . . . . . . . . . . . . . . Peak Influence 805 | . 85 . 39 . 119 13 30 . . . . 55 . . . . 110 805 502 269 234 50 100 Initial 440 | . . . 39 . . 13 . . . . . 40 . . . . . 53 440 120 78 . 24 Average 157 | . 17 . 21 . 49 4 5 . . . . 24 . . . . 17 309 364 218 68 3 33 Influence Increases 4048 | . 191 125 . . 149 . 30 75 . . 105 52 35 75 45 . 134 1719 331 189 466 117 210 Destroy 0b10 Robot/C 1480 | . 100 80 . . . . . . . . . . 20 . . . . 780 160 80 240 20 . Destroy 0b10 Robot/NC 70 | . 15 . . . . . . . . . . . . . . . . 35 10 . . 10 . Destroy Leader 122 | . 16 . . . . . . . . . . . . . . . . 76 . . 30 . . Allied During Kill 1040 | . . . . . . . . . . . . . . . . . . 699 140 80 121 . . Successful Hack 49 | . . . . . 14 . . . . . . 14 . . . . 6 8 7 . . . . Disable Machine 90 | . . . . . 15 . . . . . . 15 . . . . . . . 15 45 . . Destroy Structure 132 | . . . . . . . . . . . . 8 . . . . 8 46 14 14 30 12 . Partial Spotted 90 | . . . . . . . 30 . . . . 15 . . . . . 30 . . . . 15 Lose Combat Pursuer 975 | . 60 45 . . 120 . . 75 . . 105 . 15 75 45 . 120 45 . . . 75 195 Influence Decreases 3978 | . 191 43 82 . 110 39 30 75 . . 40 115 37 40 51 29 24 1042 817 281 675 77 180 Entered New Map 892 | . . . 43 . . 26 . . . . . 25 2 . 35 29 . 57 347 181 131 . 16 Time Decay 2207 | . 191 33 39 . 70 13 30 75 . . 30 80 35 40 16 . 24 504 350 80 444 39 114 Lost Part 168 | . . 10 . . 40 . . . . . 10 10 . . . . . 10 . . . 38 50 Lost Ally 500 | . . . . . . . . . . . . . . . . . . 260 120 20 100 . . Purge Threat 211 | . . . . . . . . . . . . . . . . . . 211 . . . . . Squads Dispatched 15 | . . . . . . . . . . . . 2 . . . . . 3 . . 6 2 2 Investigation 2 | . . . . . . . . . . . . . . . . . . . . . 2 . . Extermination 4 | . . . . . . . . . . . . 1 . . . . . . . . . 1 2 Reinforcement 8 | . . . . . . . . . . . . 1 . . . . . 2 . . 4 1 . Assault 1 | . . . . . . . . . . . . . . . . . . 1 . . . . . Garrison . | . . . . . . . . . . . . . . . . . . . . . . . . Intercept . | . . . . . . . . . . . . . . . . . . . . . . . . Searches Triggered . | . . . . . . . . . . . . . . . . . . . . . . . . Construction Impeded 1 | . . . . . . . . . . . . . . . . . . 1 . . . . . Haulers Reinforced 2 | . . . . . . . . . . . . 1 . . . . . . . . 1 . . Active Scanning Responses . | . . . . . . . . . . . . . . . . . . . . . . . . Cargo Convoy Interrupts . | . . . . . . . . . . . . . . . . . . . . . . . . Stealth | -11 -10 -10 -8 -8 -6 -6 -6 -6 -6 -6 -5 -5 -5 -5 -5 -4 -4 -4 -4 -4 -3 -2 -1 --------- Run | Yrd Mat Sub Rec Scr Fac Was Fac Low Low Zio Pro Fac Upp Upp War Pro Fac Ext Cet Arc Res Res Acc Distress Signals 14 | . 1 . 1 . . . . . . . 1 . . . . . 1 1 2 . 6 1 . Communications Jammed . | . . . . . . . . . . . . . . . . . . . . . . . . Distress Signals . | . . . . . . . . . . . . . . . . . . . . . . . . Times Spotted 290 | . 15 18 . . 14 5 . 5 . 52 10 4 1 8 13 2 16 43 10 4 26 15 29 Peak Tracking Total 26 | . 4 6 . . 5 5 . 4 . 26 8 4 1 6 5 2 15 6 5 2 8 11 18 Tactical Retreats 31 | . 3 2 . . 2 . . 4 . 2 3 . 1 1 2 . 2 2 . . . 2 5 Traps | -11 -10 -10 -8 -8 -6 -6 -6 -6 -6 -6 -5 -5 -5 -5 -5 -4 -4 -4 -4 -4 -3 -2 -1 ------- Run | Yrd Mat Sub Rec Scr Fac Was Fac Low Low Zio Pro Fac Upp Upp War Pro Fac Ext Cet Arc Res Res Acc Traps Triggered 11 | . . 5 . . 1 . . . . . . . . . . . . 2 . . 1 . 2 Indirectly . | . . . . . . . . . . . . . . . . . . . . . . . . Trap Hack Attempts . | . . . . . . . . . . . . . . . . . . . . . . . . Triggered . | . . . . . . . . . . . . . . . . . . . . . . . . Disarmed . | . . . . . . . . . . . . . . . . . . . . . . . . Reprogrammed . | . . . . . . . . . . . . . . . . . . . . . . . . Reused . | . . . . . . . . . . . . . . . . . . . . . . . . Traps Extracted . | . . . . . . . . . . . . . . . . . . . . . . . . Installed 1 | . . 1 . . . . . . . . . . . . . . . . . . . . . Triggered . | . . . . . . . . . . . . . . . . . . . . . . . . Most Traps Carried 1 | . . 1 . . . . . . . . . . . . . . . . . . . . . Machines | -11 -10 -10 -8 -8 -6 -6 -6 -6 -6 -6 -5 -5 -5 -5 -5 -4 -4 -4 -4 -4 -3 -2 -1 ---------- Run | Yrd Mat Sub Rec Scr Fac Was Fac Low Low Zio Pro Fac Upp Upp War Pro Fac Ext Cet Arc Res Res Acc Machines Disabled 7 | . . . . . 1 . . . . . . 1 . . . . . 1 . 1 3 . . Max in Single Turn 1 | . . . . . 1 . . . . . . 1 . . . . . 1 . 1 1 . . Garrison Access 3 | . . . . . 1 . 1 . . . . . . . . . . . . . 1 . . Machines Repaired . | . . . . . . . . . . . . . . . . . . . . . . . . Machines Dismantled . | . . . . . . . . . . . . . . . . . . . . . . . . Machines Sabotaged . | . . . . . . . . . . . . . . . . . . . . . . . . Overloaded Fab Kills . | . . . . . . . . . . . . . . . . . . . . . . . . Hacking | -11 -10 -10 -8 -8 -6 -6 -6 -6 -6 -6 -5 -5 -5 -5 -5 -4 -4 -4 -4 -4 -3 -2 -1 --------- Run | Yrd Mat Sub Rec Scr Fac Was Fac Low Low Zio Pro Fac Upp Upp War Pro Fac Ext Cet Arc Res Res Acc Machines Accessed 35 | . . . 1 3 4 . 2 . . . . 1 2 . 4 . 3 11 1 . 2 . 1 Terminals 20 | . . . 1 . 3 . . . . . . 1 . . . . 3 11 1 . . . . Fabricators 2 | . . . . . . . 1 . . . . . . . . . . . . . 1 . . Repair Stations . | . . . . . . . . . . . . . . . . . . . . . . . . Recycling Units . | . . . . . . . . . . . . . . . . . . . . . . . . Scanalyzers . | . . . . . . . . . . . . . . . . . . . . . . . . Garrison Access 4 | . . . . . 1 . 1 . . . . . . . . . . . . . 1 . 1 Total Hacks 73 | . . . 1 15 6 . 3 . . . . 4 6 . 11 . 5 17 1 . 3 . 1 Successful 50 | . . . . 15 2 . 1 . . . . 2 6 . 11 . 3 9 1 . . . . Failed 23 | . . . 1 . 4 . 2 . . . . 2 . . . . 2 8 . . 3 . 1 Catastrophic 7 | . . . . . 2 . . . . . . . . . . . . 2 . . 2 . 1 Database Lockouts . | . . . . . . . . . . . . . . . . . . . . . . . . Manual 21 | . . . 1 . 4 . 1 . . . . 4 . . . . 4 5 1 . 1 . . Terminals 32 | . . . 1 . 4 . . . . . . 4 . . . . 5 17 1 . . . . Fabricators 2 | . . . . . . . 1 . . . . . . . . . . . . . 1 . . Repair Stations . | . . . . . . . . . . . . . . . . . . . . . . . . Recycling Units . | . . . . . . . . . . . . . . . . . . . . . . . . Scanalyzers . | . . . . . . . . . . . . . . . . . . . . . . . . Garrison Access 7 | . . . . . 2 . 2 . . . . . . . . . . . . . 2 . 1 Terminal Hacks 47 | . . . . 15 . . . . . . . 2 6 . 11 . 3 9 1 . . . . Record 20 | . . . . 15 . . . . . . . . 5 . . . . . . . . . . Prototype ID Bank 9 | . . . . . . . . . . . . . . . 9 . . . . . . . . Open Door 12 | . . . . . . . . . . . . . 1 . 2 . 1 7 1 . . . . Branch Access Points 2 | . . . . . . . . . . . . 1 . . . . 1 . . . . . . Unreport Threat 2 | . . . . . . . . . . . . . . . . . . 2 . . . . . Registered Components 2 | . . . . . . . . . . . . 1 . . . . 1 . . . . . . Fabricator Hacks . | . . . . . . . . . . . . . . . . . . . . . . . . Repair Station Hacks . | . . . . . . . . . . . . . . . . . . . . . . . . Recycling Unit Hacks . | . . . . . . . . . . . . . . . . . . . . . . . . Scanalyzer . | . . . . . . . . . . . . . . . . . . . . . . . . Garrison Access Hacks 2 | . . . . . 1 . 1 . . . . . . . . . . . . . . . . Seal Access 2 | . . . . . 1 . 1 . . . . . . . . . . . . . . . . Unauthorized Hacks 1 | . . . . . 1 . . . . . . . . . . . . . . . . . . Terminals 1 | . . . . . 1 . . . . . . . . . . . . . . . . . . Botnet 1 | . . . . . 1 . . . . . . . . . . . . . . . . . . Fabricators . | . . . . . . . . . . . . . . . . . . . . . . . . Repair Stations . | . . . . . . . . . . . . . . . . . . . . . . . . Recycling Units . | . . . . . . . . . . . . . . . . . . . . . . . . Scanalyzers . | . . . . . . . . . . . . . . . . . . . . . . . . Garrison Access . | . . . . . . . . . . . . . . . . . . . . . . . . Data Cores Recovered . | . . . . . . . . . . . . . . . . . . . . . . . . Used . | . . . . . . . . . . . . . . . . . . . . . . . . Hacking Detections 15 | . . . 1 . 4 . 2 . . . . 1 . . . . 1 4 . . 1 . 1 Full Trace Events 1 | . . . . . . . . . . . . . . . . . . . . . 1 . . Feedback Events . | . . . . . . . . . . . . . . . . . . . . . . . . Feedback Blocked . | . . . . . . . . . . . . . . . . . . . . . . . . Robot Schematics Acquired 4 | . . . . . . . . . . 4 . . . . . . . . . . . . . Robots Built . | . . . . . . . . . . . . . . . . . . . . . . . . Authchips . | . . . . . . . . . . . . . . . . . . . . . . . . Time . | . . . . . . . . . . . . . . . . . . . . . . . . Total Robot Build Rating . | . . . . . . . . . . . . . . . . . . . . . . . . Part Schematics Acquired 13 | . . . . . . . . . . 13 . . . . . . . . . . . . . Parts Built . | . . . . . . . . . . . . . . . . . . . . . . . . Authchips . | . . . . . . . . . . . . . . . . . . . . . . . . Time . | . . . . . . . . . . . . . . . . . . . . . . . . Total Part Build Rating . | . . . . . . . . . . . . . . . . . . . . . . . . Parts Repaired . | . . . . . . . . . . . . . . . . . . . . . . . . Time . | . . . . . . . . . . . . . . . . . . . . . . . . Parts Recycled . | . . . . . . . . . . . . . . . . . . . . . . . . Recycled Matter . | . . . . . . . . . . . . . . . . . . . . . . . . Retrieved Matter . | . . . . . . . . . . . . . . . . . . . . . . . . Retrieved Components . | . . . . . . . . . . . . . . . . . . . . . . . . Parts Scanalyzed . | . . . . . . . . . . . . . . . . . . . . . . . . Part Schematics Acquired . | . . . . . . . . . . . . . . . . . . . . . . . . Parts Damaged . | . . . . . . . . . . . . . . . . . . . . . . . . Bothacking | -11 -10 -10 -8 -8 -6 -6 -6 -6 -6 -6 -5 -5 -5 -5 -5 -4 -4 -4 -4 -4 -3 -2 -1 ------------ Run | Yrd Mat Sub Rec Scr Fac Was Fac Low Low Zio Pro Fac Upp Upp War Pro Fac Ext Cet Arc Res Res Acc Used RIF Installer . | . . . . . . . . . . . . . . . . . . . . . . . . Robots Hacked . | . . . . . . . . . . . . . . . . . . . . . . . . Non-combat . | . . . . . . . . . . . . . . . . . . . . . . . . Combat . | . . . . . . . . . . . . . . . . . . . . . . . . Robot Hacks Applied . | . . . . . . . . . . . . . . . . . . . . . . . . Relay Couplers Released 1 | . . . . . . . . . . . . . . . . . . . . . 1 . . Machine Destruction 1 | . . . . . . . . . . . . . . . . . . . . . 1 . . Fabnet Peak Effective % . | . . . . . . . . . . . . . . . . . . . . . . . . Robots Rewired 19 | . . . . . . . . . . . . . . . . . . 19 . . . . . Allies Hacked . | . . . . . . . . . . . . . . . . . . . . . . . . Hacks Repelled . | . . . . . . . . . . . . . . . . . . . . . . . . Allies | -11 -10 -10 -8 -8 -6 -6 -6 -6 -6 -6 -5 -5 -5 -5 -5 -4 -4 -4 -4 -4 -3 -2 -1 -------- Run | Yrd Mat Sub Rec Scr Fac Was Fac Low Low Zio Pro Fac Upp Upp War Pro Fac Ext Cet Arc Res Res Acc Total Allies 35 | . . . . . . . . . . . . . 2 . . . . 28 5 . . . . Largest Group 19 | . . . . . . . . . . . . . 2 . . . . 19 10 7 5 . . Highest-Rated Group 911 | . . . . . . . . . . . . . 56 . . . . 911 768 597 425 . . Highest-Rated Ally 159 | . . . . . . . . . . . . . 31 . . . . 159 143 143 96 . . Total Orders . | . . . . . . . . . . . . . . . . . . . . . . . . Ally Attacks 372 | . . . . . . . . . . . . . 8 . . . . 223 59 35 47 . . Total Damage 11495 | . . . . . . . . . . . . . 168 . . . . 6611 1917 1239 1560 . . Kills 61 | . . . . . . . . . . . . . 1 . . . . 44 7 4 5 . . Allies Corrupted 1 | . . . . . . . . . . . . . . . . . . 1 . . . . . Allies Melted 1 | . . . . . . . . . . . . . . . 1 . . . . . . . . Intel | -11 -10 -10 -8 -8 -6 -6 -6 -6 -6 -6 -5 -5 -5 -5 -5 -4 -4 -4 -4 -4 -3 -2 -1 ------- Run | Yrd Mat Sub Rec Scr Fac Was Fac Low Low Zio Pro Fac Upp Upp War Pro Fac Ext Cet Arc Res Res Acc Active Infowar (turns) 3956 | . . . . . 185 70 209 186 94 747 156 176 335 105 464 40 86 902 . . . . 201 Sensors 2138 | . . . . . 185 70 209 186 94 747 136 156 335 20 . . . . . . . . . Decoding 2996 | . . . . . . . . . . 732 156 176 335 105 464 40 86 902 . . . . . Triangulation 201 | . . . . . . . . . . . . . . . . . . . . . . . 201 Robot Analysis Total . | . . . . . . . . . . . . . . . . . . . . . . . . Derelict Logs Recovered 16 | . . 1 . 4 . . . 2 . 1 3 . 3 1 . 1 . . . . . . . Drone Launches . | . . . . . . . . . . . . . . . . . . . . . . . . Drone Recoveries . | . . . . . . . . . . . . . . . . . . . . . . . . Decoded 0b10 Intel 59 | . . . . . . . . . . . . 17 . . . . 8 34 . . . . . Traps 12 | . . . . . . . . . . . . 4 . . . . 1 7 . . . . . Emergency Access 3 | . . . . . . . . . . . . 1 . . . . . 2 . . . . . Items 43 | . . . . . . . . . . . . 12 . . . . 7 24 . . . . . Exits 1 | . . . . . . . . . . . . . . . . . . 1 . . . . . Exploration | -11 -10 -10 -8 -8 -6 -6 -6 -6 -6 -6 -5 -5 -5 -5 -5 -4 -4 -4 -4 -4 -3 -2 -1 ------------- Run | Yrd Mat Sub Rec Scr Fac Was Fac Low Low Zio Pro Fac Upp Upp War Pro Fac Ext Cet Arc Res Res Acc Turns Passed 21138 | 96 819 6770 88 5379 214 70 209 186 94 747 156 176 335 105 464 40 86 1956 795 161 1544 360 288 Spaces Moved 15785 | 57 265 3006 74 1705 610 104 466 555 287 2211 414 388 656 284 878 147 244 1293 356 79 898 272 536 Core 609 | 9 . . . . . . . . . . . . . . . . . 1 . . . 120 479 Treads 3102 | 48 265 678 . . . . . . . . . . . . . . . 626 356 79 898 152 . Legs 3724 | . . 2141 . 1583 . . . . . . . . . . . . . . . . . . . Wheels 383 | . . 187 74 122 . . . . . . . . . . . . . . . . . . . Hover . | . . . . . . . . . . . . . . . . . . . . . . . . Flight 7967 | . . . . . 610 104 466 555 287 2211 414 388 656 284 878 147 244 666 . . . . 57 Fastest Speed 24 | 50 160 120 120 120 24 30 30 30 30 27 35 35 35 34 27 27 27 30 160 160 152 50 42 Average Speed 117 | 142 160 212 120 314 26 30 30 30 30 28 35 36 35 34 32 27 29 95 160 160 154 111 49 Slowest Speed 950 | 160 160 330 120 330 105 30 30 30 105 106 35 100 35 35 34 27 30 490 160 160 160 950 200 Overloaded Moves . | . . . . . . . . . . . . . . . . . . . . . . . . Propulsion Burnouts . | . . . . . . . . . . . . . . . . . . . . . . . . Robots Hopped 35 | . . . . . 4 . . 1 . 4 2 3 1 . . . 1 17 . . . . 2 Potential Cave-ins 2 | . . . . . . . . . . . . . . . . . . . . . 2 . . Cave-ins Triggered . | . . . . . . . . . . . . . . . . . . . . . . . . Exploration Rate (%) 53 | 4 62 96 17 94 19 93 7 70 46 85 69 12 79 56 90 39 12 96 87 77 27 11 24 Regions Visited 23 Branch Regions 14 Pre-discovered Areas 3 | . . . . 1 . . . . . 1 . . 1 . . . . . . . . . . Known Exits Taken 14 | . . . . . . . 1 1 1 1 1 1 1 1 1 1 1 . 1 1 1 . . Unknown Exits Taken 7 | 1 1 1 1 1 . . . . . . . . . . . . . 1 . . . 1 . Scrap Searched 32 | . . 12 . 4 . . . 7 . 3 2 . 2 2 . . . . . . . . . Spaces Dug 9 | . . . . . . . . . . . . 4 . . . . 4 . . . 1 . . Terrain Destroyed 56 | . . . . . . . . . . 19 . 4 . . . . 4 6 1 3 15 4 . Melee 8 | . . . . . . . . . . . . 4 . . . . 4 . . . . . . Projectile 21 | . . . . . . . . . . . . . . . . . . 6 1 3 7 4 . AOE 27 | . . . . . . . . . . 19 . . . . . . . . . . 8 . . Terrain Rammed . | . . . . . . . . . . . . . . . . . . . . . . . . Walls Destroyed . | . . . . . . . . . . . . . . . . . . . . . . . . Machines Disabled . | . . . . . . . . . . . . . . . . . . . . . . . . Actions | -11 -10 -10 -8 -8 -6 -6 -6 -6 -6 -6 -5 -5 -5 -5 -5 -4 -4 -4 -4 -4 -3 -2 -1 --------- Run | Yrd Mat Sub Rec Scr Fac Was Fac Low Low Zio Pro Fac Upp Upp War Pro Fac Ext Cet Arc Res Res Acc Total 17969 | 72 616 3254 73 1718 655 141 536 574 290 2285 422 414 759 290 1056 146 252 1901 560 104 997 299 555 Wait 1426 | . 314 88 . 1 24 37 61 13 . 4 10 3 102 5 173 . . 378 154 13 36 2 8 Move 15702 | 56 264 3005 73 1704 602 103 465 552 286 2203 410 381 653 283 877 146 241 1264 355 78 897 271 533 Hop 26 | . . . . . 4 . . 1 . 3 1 3 1 . . . 1 11 . . . . 1 Pick Up 115 | 10 8 42 . 6 1 . 2 . . 8 1 3 . . . . 2 18 6 . 5 1 2 Fast Attach 62 | . 1 3 . . 6 1 2 1 . 8 . 4 2 1 4 . . 4 9 1 10 . 5 Attach 63 | 6 1 12 . . 8 . . 2 1 4 . 7 . . 2 . 1 11 2 1 2 2 1 Detach 22 | . . . . . 3 . 2 3 1 3 . 5 . . . . 1 2 1 . . 1 . Swap 32 | . 1 8 . 2 . . . . . 4 . . . . . . . 9 1 1 4 2 . Drop 113 | . 2 24 . 5 6 . 4 2 . 13 . 2 1 1 . . 2 9 17 4 15 3 3 Fire 247 | . 25 71 . . . . . . . 33 . . . . . . . 54 15 6 28 15 . Melee 22 | . . . . . 1 . . . 2 2 . 6 . . . . 4 7 . . . . . Ram 4 | . . . . . . . . . . . . . . . . . . . . . . 2 2 Kick . | . . . . . . . . . . . . . . . . . . . . . . . . Crush . | . . . . . . . . . . . . . . . . . . . . . . . . Escape Stasis 36 | . . . . . . . . . . . . . . . . . . 36 . . . . . Rewire 98 | . . . . . . . . . . . . . . . . . . 98 . . . . . Trap 1 | . . 1 . . . . . . . . . . . . . . . . . . . . . Miscellaneous . | . . . . . . . . . . . . . . . . . . . . . . . . Route ------- -11/Scrapyard -10/Materials (discovered 4 exits: [*Mat x3] / [*Sub]) -10/Subcaves (discovered 3 exits: [*Mat x2] / *Rec) -8/Recycling -8/Scraptown (discovered 2 exits: *Fac x2) -6/Factory -6/Waste -6/Factory (discovered 2 exits: *Fac / *Low) -6/Lower Caves -6/Lower Caves -6/Zion -5/Proximity Caves -5/Factory (discovered 3 exits: Fac / *Upp x2) -5/Upper Caves -5/Upper Caves (discovered 2 exits: Fac / *War) -5/Warlord -4/Proximity Caves -4/Factory (discovered 6 exits: Res / Upp x2 / *Ext x2 / Arm) -4/Extension (discovered 3 exits: *Res x2 / *Cet) -4/Cetus (discovered 3 exits: *Res x2 / *Arc) -4/Archives (discovered 2 exits: *Res / [*Hub]) -3/Research (discovered 4 exits: *Res x3 / Qua) -2/Research -1/Access History --------- Turn | Location | Event 7 | -11/Scrapyard | Discovered new exit (range 16) 97 | -11/Scrapyard | Entered Materials 191 | -10/Materials | Discovered new exit (range 3) 336 | -10/Materials | Build established: Mutant 402 | -10/Materials | Discovered new exit (range 16) 725 | -10/Materials | Discovered new exit (range 14) 896 | -10/Materials | Discovered new exit (range 15) 916 | -10/Materials | Entered Subcaves 1592 | -10/Subcaves | Learned Materials garrison access intel 2458 | -10/Subcaves | Shifting Twisted Machinery released Battle Rifle 3221 | -10/Subcaves | Core integrity fell below 50% 3864 | -10/Subcaves | Discovered new exit (range 12) 5194 | -10/Subcaves | Discovered new exit (range 11) 7670 | -10/Subcaves | Discovered new exit (range 14) 7681 | -10/Subcaves | Core integrity fell below 20% 7686 | -10/Subcaves | Entered Recycling 7687 | -8/Recycling | Met a Zionite searching for Scraptown 7744 | -8/Recycling | Scanned before Scraplab entrance 7761 | -8/Recycling | Entered Scraplab 7770 | -8/Recycling | Discovered new exit (range 3) 7774 | -8/Recycling | Entered Scraptown 8341 | -8/Scraptown | Visited CPS Storage 8424 | -8/Scraptown | Visited Symbiants 8493 | -8/Scraptown | Visited Fellowship of the Rings 8566 | -8/Scraptown | Visited Cyclists 8635 | -8/Scraptown | Visited Red Mages 8751 | -8/Scraptown | Visited Shadow of the Wyrm 9537 | -8/Scraptown | Scanned Subdweller tech in exchange for log data 9544 | -8/Scraptown | Learned location of Armory (-4) 9547 | -8/Scraptown | Learned location of 2 exits from Proximity Caves 9550 | -8/Scraptown | Learned location of 2 exits from Research 9554 | -8/Scraptown | Learned Factory emergency access door positions 9603 | -8/Scraptown | Discovered new exit (range 5) 9880 | -8/Scraptown | Visited SPCMW 10002 | -8/Scraptown | Visited UFD Registry 10002 | -8/Scraptown | Registered with UFD as "Kinetichassis" 10134 | -8/Scraptown | Entered Cyclist Reading Room 10365 | -8/Scraptown | Visited Derelict Rescue Squad 10468 | -8/Scraptown | Visited Scrap Suit Storage 10560 | -8/Scraptown | Visited Supply Room 10659 | -8/Scraptown | Delivered Scrap Shield to a Scientist 11029 | -8/Scraptown | Visited Science Testing Area 11085 | -8/Scraptown | Visited Supply Room 11246 | -8/Scraptown | Received an X-ray algorithm 11388 | -8/Scraptown | Visited Abandonware Association 11438 | -8/Scraptown | Learned abandonware demo "ERRANTS.EXE" 11438 | -8/Scraptown | Learned abandonware demo "TRNCOAT.EXE" 11702 | -8/Scraptown | Discovered new exit (range 5) 11821 | -8/Scraptown | Visited Infowarlord's Domain 11943 | -8/Scraptown | Visited Botcube Research 12991 | -8/Scraptown | Build established: Derelict-Mutant 13020 | -8/Scraptown | Found Exp. Sensor Array 13153 | -8/Scraptown | Entered Factory 13153 | -6/Factory | Evolved 8 slots: Propulsion x3, Utility x5 13291 | -6/Factory | Spotted B-75 Beast 13322 | -6/Factory | Lost 3 parts (1p1n1u) 13367 | -6/Factory | Manually triggered Chute Trap 13367 | -6/Factory | Sucked down chute 13367 | -6/Factory | Entered Waste 13371 | -6/Waste | Found Prototype Hackware 13371 | -6/Waste | Identified Exp. System Shield 13410 | -6/Waste | Spotted C-40 Crusher 13413 | -6/Waste | Spotted C-40 Crusher 13425 | -6/Waste | Spotted C-40 Crusher 13426 | -6/Waste | Spotted C-40 Crusher 13431 | -6/Waste | Spotted C-40 Crusher 13432 | -6/Waste | Spotted C-40 Crusher 13434 | -6/Waste | Discovered new exit (range 10) 13437 | -6/Waste | Identified exit to Factory 13437 | -6/Waste | Entered Factory 13475 | -6/Factory | Build established: Sprinter 13522 | -6/Factory | Discovered new exit (range 8) 13525 | -6/Factory | Identified exit to Lower Caves 13616 | -6/Factory | Discovered new exit (range 6) 13618 | -6/Factory | Identified exit to Factory 13646 | -6/Factory | Entered Lower Caves 13648 | -6/Lower Caves | UFD Scientist delivered a prototype 13648 | -6/Lower Caves | Found Prototype Protection 13648 | -6/Lower Caves | Identified Enh. Scrap Shield 13653 | -6/Lower Caves | Learned Factory terminal intel 13658 | -6/Lower Caves | Encountered a Warlord checkpoint 13781 | -6/Lower Caves | Discovered new exit (range 12) 13784 | -6/Lower Caves | Identified exit to Lower Caves 13832 | -6/Lower Caves | Entered another Lower Caves area 13874 | -6/Lower Caves | Discovered new exit (range 10) 13876 | -6/Lower Caves | Identified exit to Zion 13926 | -6/Lower Caves | Entered Zion 13956 | -6/Zion | Discovered new exit (range 16) 13971 | -6/Zion | Learned Factory garrison access intel 13997 | -6/Zion | Found Prototype Launcher 13997 | -6/Zion | Identified Gui. Missile Launcher 14029 | -6/Zion | Given the Hacking Drone Bay 14031 | -6/Zion | Found Prototype Device 14031 | -6/Zion | Identified Hacking Drone Bay 14119 | -6/Zion | Given A8's code to call for help 14202 | -6/Zion | Visited the Megawrench Repair Shop 14202 | -6/Zion | Megawrench repaired 6 parts 14216 | -6/Zion | Turned away by Imprinter 14223 | -6/Zion | Build established: Derelict-Sprinter 14478 | -6/Zion | Attacked by Zionites 14514 | -6/Zion | Destroyed Imprinter 14611 | -6/Zion | Spotted HI-5XX(B) 14612 | -6/Zion | Spotted RO-I94(B) 14613 | -6/Zion | 12-ASH came to Zion's defense 14673 | -6/Zion | Identified exit to Proximity Caves 14673 | -6/Zion | Entered Proximity Caves 14678 | -5/Proximity Caves | Learned 4 Factory zone layouts 14685 | -5/Proximity Caves | Learned location of 1 exit from Upper Caves 14695 | -5/Proximity Caves | Lost 4 parts (1p2n1u) 14696 | -5/Proximity Caves | Learned Factory non-interactive machine intel 14829 | -5/Proximity Caves | Entered Factory 14829 | -5/Factory | Evolved 2 slots: Utility x2 14830 | -5/Factory | Identified exit to Factory 14831 | -5/Factory | Loaded intel: 250 non-interactive machine locations 14832 | -5/Factory | Loaded intel: 26 terminal locations 14833 | -5/Factory | Loaded intel: 4 garrison access locations 14933 | -5/Factory | Identified exit to Upper Caves 15005 | -5/Factory | Entered Upper Caves 15006 | -5/Upper Caves | Identified exit to Upper Caves 15086 | -5/Upper Caves | Learned 12 Factory zone layouts 15131 | -5/Upper Caves | Entered an active Warlord outpost 15132 | -5/Upper Caves | A Commander dispatched an escort 15137 | -5/Upper Caves | Learned Armory trap positions 15242 | -5/Upper Caves | Learned Factory emergency access door positions 15340 | -5/Upper Caves | Entered another Upper Caves area 15340 | -5/Upper Caves | Accompanied by 2 allies 15341 | -5/Upper Caves | Commander's escort returned to base 15341 | -5/Upper Caves | Commander's escort returned to base 15358 | -5/Upper Caves | Spotted B-75 Beast 15374 | -5/Upper Caves | Found DCF Scrap (17 items) 15443 | -5/Upper Caves | Discovered new exit (range 6) 15444 | -5/Upper Caves | Identified exit to Warlord 15445 | -5/Upper Caves | Entered Warlord 15608 | -5/Warlord | Warlord's base attacked by MAIN.C 15638 | -5/Warlord | Rebuked by Warlord 15666 | -5/Warlord | Build established: Hacker-Mutant 15754 | -5/Warlord | Lost 3 allies 15808 | -5/Warlord | Warlord forces counterattacked 15859 | -5/Warlord | Opened side exit 15905 | -5/Warlord | Discovered new exit (range 14) 15908 | -5/Warlord | Identified exit to Proximity Caves 15909 | -5/Warlord | Entered Proximity Caves 15927 | -4/Proximity Caves | Learned Research stockpile data 15949 | -4/Proximity Caves | Entered Factory 15949 | -4/Factory | Evolved 2 slots: Propulsion x1, Utility x1 15950 | -4/Factory | Identified exit to Armory 15951 | -4/Factory | Identified exit to Research 15956 | -4/Factory | Identified exit to Upper Caves 15956 | -4/Factory | Identified exit to Extension 15977 | -4/Factory | Spotted B-86 Titan 16035 | -4/Factory | Entered Extension 16050 | -4/Extension | Rescued a captive Derelict 16055 | -4/Extension | Rescued a captive Derelict 16057 | -4/Extension | Rescued a captive Derelict 16079 | -4/Extension | Rescued a captive Derelict 16085 | -4/Extension | Rescued a captive Derelict 16109 | -4/Extension | Build established: Hacker-Sprinter 16120 | -4/Extension | Rescued a captive Derelict 16129 | -4/Extension | Rescued A7 16543 | -4/Extension | Spotted B-86 Titan 16558 | -4/Extension | Spotted B-86 Titan 16562 | -4/Extension | Destroyed B-86 Titan 16586 | -4/Extension | Allies destroyed B-86 Titan 16622 | -4/Extension | Lost 5 allies 16879 | -4/Extension | Build established: Scavenger-Mutant 16930 | -4/Extension | Rescued a captive Derelict 16931 | -4/Extension | Rescued a captive Derelict 17445 | -4/Extension | Build established: Commander-Mutant 17785 | -4/Extension | First assault squad dispatched 17885 | -4/Extension | Lost 10 allies 17962 | -4/Extension | Discovered exit to Research (range 16) 17962 | -4/Extension | Discovered new exit (range 16) 17991 | -4/Extension | Entered Cetus 17991 | -4/Cetus | Accompanied by 8 allies (A7) 17996 | -4/Cetus | Acquired a Cetus Manufacturing Module code from A7 18011 | -4/Cetus | Spotted Cetus Guard 18011 | -4/Cetus | Spotted Cetus Guard 18013 | -4/Cetus | Spotted Cetus Guard 18016 | -4/Cetus | Spotted Cetus Guard 18023 | -4/Cetus | Destroyed Cetus Guard 18024 | -4/Cetus | Allies destroyed Cetus Guard 18036 | -4/Cetus | Allies destroyed Cetus Guard 18042 | -4/Cetus | Destroyed Cetus Guard 18066 | -4/Cetus | Lost 3 allies 18131 | -4/Cetus | Build established: Scavenger-Mutant 18133 | -4/Cetus | Escorted A7 to Cetus Mainframe 18164 | -4/Cetus | Started Cetus Manufacturing Module 18189 | -4/Cetus | Manufactured an Enhanced Grunt 18214 | -4/Cetus | Manufactured an Enhanced Grunt 18239 | -4/Cetus | Manufactured an Enhanced Grunt 18264 | -4/Cetus | Manufactured an Enhanced Grunt 18289 | -4/Cetus | Manufactured an Enhanced Grunt 18329 | -4/Cetus | Discovered exit to Research (range 16) 18540 | -4/Cetus | Discovered new exit (range 15) 18588 | -4/Cetus | Spotted Cetus Guard 18588 | -4/Cetus | Spotted Cetus Guard 18589 | -4/Cetus | Spotted Cetus Guard 18589 | -4/Cetus | Spotted Cetus Guard 18608 | -4/Cetus | Destroyed Cetus Guard 18610 | -4/Cetus | Allies destroyed Cetus Guard 18615 | -4/Cetus | Discovered exit to Research (range 16) 18616 | -4/Cetus | Allies destroyed Cetus Guard 18618 | -4/Cetus | Allies destroyed Cetus Guard 18625 | -4/Cetus | Found Prototype Device 18625 | -4/Cetus | Identified Exp. Thermal Shield 18649 | -4/Cetus | Lost 3 allies 18665 | -4/Cetus | Met Revision 17 18741 | -4/Cetus | Security sweep announced 18762 | -4/Cetus | Identified exit to Archives 18786 | -4/Cetus | Entered Archives 18786 | -4/Archives | Accompanied by 7 allies (A7) 18792 | -4/Archives | Received a hacking code to weaken MAIN.C 18873 | -4/Archives | Discovered exit to Research (range 16) 18894 | -4/Archives | Discovered new exit (range 16) 18947 | -4/Archives | System corruption reached 10% 18947 | -4/Archives | Entered Research 18947 | -3/Research | Accompanied by 5 allies 18947 | -3/Research | Evolved 2 slots: Power x1, Propulsion x1 18948 | -3/Research | Identified exit to Quarantine 18948 | -3/Research | Identified exit to Research 19147 | -3/Research | Revision forces began assault on 0b10 19203 | -3/Research | Met up with Revision 17++ 19203 | -3/Research | Spotted B-86 Titan 19543 | -3/Research | Lost 6 allies 19647 | -3/Research | Research terminal network offline 19648 | -3/Research | Discovered exit to Research (range 11) 19838 | -3/Research | Lost 3 allies 20050 | -3/Research | Lost 3 allies 20397 | -3/Research | Discovered exit to Research (range 13) 20412 | -3/Research | Lost 3 allies 20471 | -3/Research | Spotted Striker 20485 | -3/Research | Spotted Striker 20491 | -3/Research | Entered another Research area 20491 | -2/Research | Evolved 2 slots: Propulsion x2 20703 | -2/Research | Spotted B-90 Cyclops 20789 | -2/Research | System corruption reached 10% 20792 | -2/Research | Core integrity fell below 50% 20815 | -2/Research | Core integrity fell below 20% 20821 | -2/Research | Lost 14 parts (2p4n7u1w) 20848 | -2/Research | Discovered new exit (range 6) 20851 | -2/Research | Entered Access 20851 | -1/Access | Evolved 2 slots: Utility x2 21035 | -1/Access | Spotted B-99 Colossus 21059 | -1/Access | Core integrity fell below 50% 21064 | -1/Access | Build established: Mutant 21117 | -1/Access | Core integrity fell below 20% 21122 | -1/Access | System corruption reached 10% 21139 | -1/Access | Destroyed by S-43 Plague with Heavy Machine Gun Last Messages --------------- System corrupted: Component data lost. Acquired Impulse Thruster Array. Acquired Med. Storage Unit. K-01 Serf cleans the Repair Station. K-01 Serf destroyed. System corrupted: Matter fused (-5). Impulse Thruster Array destroyed. Penetrated by Slug. Slug penetrates Longscan Aggregator. Impulse Thruster Array destroyed. Dropped Med. Storage Unit. Triggered Shock Trap. The floor emits a surge of raw power. System corrupted (+2). Slug penetrates Wall. System corrupted: Component data lost. Adv. Signal Interpreter destroyed. Critical hit (Burn: +37). Penetrated by Slug. System corrupted: Energy discharge (-33). Map ----- +----------------------------------------------------+ | = ??????????????????????????????????????????? | | ??????????????????????????????????????????? | | ??????????????????????????????????????????? | | ??????????????????????????????????????????? | | ###???????????????????????????????????????????? | | #?????????????????????????????????????????????? | | #?????????????????????????????????????????????? | | #?????????????????????????????????????????????? | | ##????????????????????????????????????????????? | | #????????????????????????????????????????????? | | #????????????????????????????????????????????? | | +????????????????????????????????????????????? | | #????????????????????????????????????????????? | | #????????????????????????????????????????????? | | #????????????????????????????????????????????? | | #????????????????????????????????????????????? | | #????????????????????????????????????????????? | | #######################??????????????????????? | | ## #??????????????????????? | | ## #??????????????????????? | | ## !! #??????????????????????? | | ## ! #??????????????????????? | | ####+#### ## #??????????????????????? | | # ## ! #??????????????????????? | | # ## s #??????????????????????? | | """"" # ## gs @#??????????????????????? | | """"" # #######/######??????????????????????? | | """"" # #??????????????????????????? | | """"" # ! ???????????????????? | | """"" # ] ???????????????? | | """"? # ###???????????????? | | ########## "????????????????? | | #????????# "" "????????????????? | | #????????# """ "????????????????? | | #????????# "R T????????????????? | | # #######????????# """ ""????????????????? | | ?##??????????????# """ "?????????????????? | | ?????????????????# ?? #?????????????????? | | ?????????????????# ???? ??????????????????? | | ?????????????????# ??????????????????????????? | | ?????????????????######??????????????????????????? | | ?????????????????????????????????????????????????? | | ?????????????????????????????????????????????????? | | ?????????????????????????????????????????????????? | | ?????????????????????????????????????????????????? | | ?????????????????????????????????????????????????? | | ?????????????????????????????????????????????????? | | ?????????????????????????????????????????????????? | | ?????????????????????????????????????????????????? | | ?????????????????????????????????????????????????? | +----------------------------------------------------+ Best States ------------- Heat Dissipation 68 Energy Generation 39 Energy Capacity 310 Matter Stores 300 Matter Capacity 300 Sight Range 16 Robot Scan Range 20 Terrain Scan Density 10 Armor Coverage 3700 Resistance: TH 30 Propulsion Shielding 66 Utility Shielding 33 Evasion (%) 65 Armor Integrity Analysis 40 Recoil Reduction 9 Offensive Hacking 32 Defensive Hacking 16 Item Schematics ----------------- Hvy. Flak Cannon | -6/Zion | Archive Adv. Cooling System | -6/Zion | Archive Coil Gun | -6/Zion | Archive Imp. Arc Projector | -6/Zion | Archive Imp. Weapon Cycler | -6/Zion | Archive Imp. Proton Missile Launcher | -6/Zion | Archive Antimatter Reactor | -6/Zion | Archive Adv. Reaction Control System | -6/Zion | Archive IFF Parser | -6/Zion | Archive Mni. Drone Bay | -6/Zion | Archive Matter Compressor | -6/Zion | Archive Hvy. Treads | -6/Zion | Archive Adv. Recoil Stabilizer | -6/Zion | Archive Robot Schematics ------------------ G-50 Soldier | -6/Zion | Archive L-41 Fighter | -6/Zion | Archive G-47 Trooper | -6/Zion | Archive X-77 Beamer | -6/Zion | Archive Fabricated ------------ Nothing Repaired ---------- Nothing Alien Tech Used ----------------- None Achievements -------------- Main Advantage Monster Revising The Future Revolutionary Research Challenges ------------ None Game ------ Seed AerolevReactionArmor Manual? 0 Play Time 02:53:08 Cumulative 193.7 hours Start 2025.09.11 @ 13:12:20 End 2025.09.11 @ 23:13:42 Sessions 5 Manual Loads 0 Difficulty Rogue Special Mode None Game No. 160 Rogue 160 Adventurer 0 Explorer 0 Win Type - Total 10 Types 4/0/2/2/1/0/0/0/0/1 Lore% 87 Gallery% 83 Achievement% 66 Wizard Run 0 Options --------- Layout 1 ASCII 0 Keyboard 0 Movement Numpad Keybinds 0 Fullscreen 1 Font 24/Proggy Map View 50x35 Zoom Use 0% Tactical HUD 0 Map Filters NONE Filters NONE Steam 1 RUN: 33458ece-36b0-41aa-9892-8ed2b5a71bf1